Cogmind - Beta 13 @@@ ROGUE MODE // 2024.03.11 @ 16:32:45 Player: Renix Result: Destroyed by S-10 Pest with Light Assault Rifle Performance ------------- Evolutions (2) 1000 Regions Visited (5) 1000 Robots Destroyed (15) 75 Value Destroyed (221) 221 Prototype IDs (0) 0 Alien Tech Used (0) 0 Bonus (300) 300 TOTAL SCORE: 2596 Bonus ------- Aligned with FarCom 300 Cogmind --------- Core Integrity 0/550 Matter 300/300 Energy 100/100 System Corruption 0% Temperature Cool (0) Movement Core (50) Location -8/Materials Parts ------- > --- POWER (1) -------- (None) > --- PROPULSION (2) --- (None) > --- UTILITY (2) ------ (None) > --- WEAPON (6) ------- (None) > --- INVENTORY (5) ---- (None) Peak State ------------ > --- POWER ------------ Light Ion Engine > --- PROPULSION ------- Flight Unit Flight Unit > --- UTILITY ---------- Seismic Detector > --- WEAPON ----------- EM Shotgun Light Assault Rifle Light Assault Rifle > --- INVENTORY -------- (None) [Rating: 8] Favorites ----------- Power Light Ion Engine Engine Light Ion Engine Propulsion Flight Unit Treads Light Treads Flight Unit Flight Unit Utility Small Storage Unit Device Seismic Detector Storage Small Storage Unit Weapon Light Assault Rifle Energy Gun EM Shotgun Ballistic Gun Light Assault Rifle Launcher Grenade Launcher Build | -11 -10 -10 -10 -9 -8 ------- Run | Yrd Mat Min Exi Min Mat Slots Evolved 4 | . . . . . 4 Power . | . . . . . . Propulsion . | . . . . . . Utility . | . . . . . . Weapon 4 | . . . . . 4 Parts Attached 19 | 6 2 4 1 4 2 Power 4 | 1 . 1 1 1 . Engine 4 | 1 . 1 1 1 . Core . | . . . . . . Reactor . | . . . . . . Propulsion 5 | 2 . 2 . . 1 Treads 3 | 2 . . . . 1 Leg . | . . . . . . Wheel . | . . . . . . Hover . | . . . . . . Flight 2 | . . 2 . . . Utility 2 | 1 . . . 1 . Device 1 | . . . . 1 . Storage 1 | 1 . . . . . Processor . | . . . . . . Hackware . | . . . . . . Protection . | . . . . . . Artifact . | . . . . . . Weapon 8 | 2 2 1 . 2 1 Energy Gun 1 | . . . . 1 . Energy Cannon . | . . . . . . Ballistic Gun 6 | 2 1 1 . 1 1 Ballistic Cannon . | . . . . . . Launcher 1 | . 1 . . . . Special Weapon . | . . . . . . Impact Weapon . | . . . . . . Slashing Weapon . | . . . . . . Piercing Weapon . | . . . . . . Special Melee Weapon . | . . . . . . Unidentified Prototypes . | . . . . . . Parts Lost 12 | . . 2 . 2 8 Power 3 | . . 1 . 1 1 Propulsion 3 | . . . . . 3 Utility 1 | . . . . . 1 Weapon 5 | . . 1 . 1 3 Highest Loss Streak 7 | . . 1 . 2 7 To Critical Strikes . | . . . . . . Average Slot Usage (%) 72 | . 85 82 71 72 19 Engine 12 | . 14 12 14 12 2 Treads 10 | . 28 25 . . 3 Flight 15 | . . 1 28 28 3 Device 1 | . . . . 6 2 Storage 5 | . 14 12 . . . Energy Gun 1 | . . . . 7 1 Ballistic Gun 23 | . 22 23 28 19 5 Launcher 1 | . 5 4 . . . Naked Turns 18 | . . . . . 18 Heaviest Build 12 | 11 12 12 5 8 9 Greatest Support 40 | 40 40 40 8 8 20 Greatest Overweight (x) 1 | . . 1 . . 1 Average Overweight (x) . | . . . . . . Largest Inventory Capacity 8 | 8 8 8 5 5 5 Average Capacity 6 | 7 8 7 5 5 5 Most Carried 4 | 4 1 1 2 3 1 Average Carried . | . . . 1 1 . Final Capacity 8 | 8 8 5 5 5 5 Final Carried 2 | . 1 . 2 1 . Class Distribution -------------------- 91% | Mutant 8% | Scavenger-Mutant Dominant Class ---------------- Mutant | -10/Materials Mutant | -10/Mines Mutant | -10/Exiles Scavenger-Mutant | -9/Mines Mutant | -8/Materials Resources | -11 -10 -10 -10 -9 -8 ----------- Run | Yrd Mat Min Exi Min Mat Matter Collected 474 | 248 40 109 . 77 . Remotely . | . . . . . . Salvage Created 275 | . 53 110 . 112 . Parts 26 | . 7 8 . 11 . Haulers Intercepted . | . . . . . . Recyclers Shooed . | . . . . . . Parts Field Recycled . | . . . . . . Retrieved Matter . | . . . . . . Parts Self-Destructed . | . . . . . . Prevented . | . . . . . . Kills | -11 -10 -10 -10 -9 -8 ------- Run | Yrd Mat Min Exi Min Mat Combat Hostiles Destroyed 15 | . 3 5 . 7 . Guns 14 | . 3 4 . 7 . AOE 1 | . . 1 . . . Classes Destroyed 2 | . 1 1 . . . Swarmer 13 | . 3 3 . 7 . Grunt 2 | . . 2 . . . Best Kill Streak 4 | . 3 3 . 4 . Combat Bots Only 4 | . 3 3 . 4 . Max Kills in Single Turn 2 | . 2 1 . 1 . Gunslinging 1 | . 1 . . . . Exploded 1 | . . 1 . . . Melee . | . . . . . . Uniques/NPCs Destroyed . | . . . . . . Combat | -11 -10 -10 -10 -9 -8 -------- Run | Yrd Mat Min Exi Min Mat Hostile Shots Fired 277 | . 16 54 . 62 145 Missed 74 | . 5 10 . 28 31 Damage Taken 1837 | . 86 451 . 274 1026 Core 781 | . 9 117 . 103 552 Absorbed by Shields . | . . . . . . Core Remaining (%) 54 | 100 . . . 8 . Volleys Fired 59 | . 7 26 . 21 5 Largest 2 | . 2 2 . 2 2 Hottest 65 | . 40 50 . 65 40 Shots Fired 103 | . 14 45 . 35 9 Gun 101 | . 14 43 . 35 9 Cannon . | . . . . . . Launcher 2 | . . 2 . . . Special . | . . . . . . Kinetic 94 | . 14 43 . 28 9 Thermal . | . . . . . . Explosive 2 | . . 2 . . . Electromagnetic 7 | . . . . 7 . Robot Hit Streak 5 | . 2 5 . 3 1 Robot Miss Streak 5 | . 3 5 . 5 2 Penetration Max . | . . . . . . Secondary Targets 5 | . 1 1 . 3 . Max Gunslinging Chain 1 | . 1 1 . 1 . Shots Hit Robots 53 | . 7 26 . 18 2 Core Hits 31 | . 4 11 . 10 6 Critical Kills . | . . . . . . Critical Parts Destroyed . | . . . . . . Critical Strikes . | . . . . . . Melee Attacks . | . . . . . . Impact . | . . . . . . Slashing . | . . . . . . Piercing . | . . . . . . Sneak Attacks . | . . . . . . Combat Hostiles . | . . . . . . Follow-up Attacks . | . . . . . . Damage Inflicted 604 | . 70 303 . 191 40 Guns 436 | . 70 192 . 149 25 Cannons . | . . . . . . Explosions 153 | . . 111 . 42 . Melee . | . . . . . . Ramming 15 | . . . . . 15 Kinetic 395 | . 70 192 . 108 25 Thermal 42 | . . . . 42 . Explosive 111 | . . 111 . . . Electromagnetic 41 | . . . . 41 . Impact . | . . . . . . Slashing . | . . . . . . Piercing . | . . . . . . Highest Corruption . | . . . . . . Average Corruption . | . . . . . . Corruption Purged . | . . . . . . Corruption Blocked . | . . . . . . Overload Shots . | . . . . . . Overflow Damage . | . . . . . . Projectiles . | . . . . . . Explosions . | . . . . . . Melee . | . . . . . . Knockbacks . | . . . . . . Impact . | . . . . . . Kinetic . | . . . . . . Secondary . | . . . . . . Self-Inflicted Damage 8 | . . . . 4 4 Shots 1 | . . . . 1 . Rammed 7 | . . . . . 7 Targets Rammed 7 | . . . . . 7 Kicked . | . . . . . . Crushed . | . . . . . . Highest Temperature 136 | . . 29 . 136 3 Average Temperature 37 | . . 13 . 46 3 Received Heat Transfer 177 | . . 114 . . 63 Siege Activations . | . . . . . . Robots Corrupted . | . . . . . . Combat Hostiles . | . . . . . . Parts Fried . | . . . . . . Impact Corruptions . | . . . . . . Robots Melted . | . . . . . . Combat Hostiles . | . . . . . . Parts Melted . | . . . . . . Heat Transferred 50 | . . . . 50 . Parts Sabotaged . | . . . . . . Parts Stolen . | . . . . . . Parts Stripped . | . . . . . . Power Chain Reactions 1 | . . . . 1 . Alert | -11 -10 -10 -10 -9 -8 ------- Run | Yrd Mat Min Exi Min Mat Peak Influence 166 | . 85 155 . 166 64 Initial 64 | . . 33 . . 64 Average 60 | . 56 83 . 65 28 Maximum Alert Level . | . . . . . . Low Security (%) 100 | 100 100 100 . 100 100 Level 1 . | . . . . . . Level 2 . | . . . . . . Level 3 . | . . . . . . Level 4 . | . . . . . . Level 5 . | . . . . . . High Security . | . . . . . . Max Security . | . . . . . . Squads Dispatched 2 | . . . . . 2 Investigation . | . . . . . . Extermination . | . . . . . . Reinforcement 2 | . . . . . 2 Assault . | . . . . . . Garrison . | . . . . . . Intercept . | . . . . . . Searches Triggered . | . . . . . . Construction Impeded . | . . . . . . Haulers Reinforced . | . . . . . . Active Scanning Responses . | . . . . . . Cargo Convoy Interrupts . | . . . . . . Stealth | -11 -10 -10 -10 -9 -8 --------- Run | Yrd Mat Min Exi Min Mat Distress Signals 3 | . 1 . . . 2 Communications Jammed . | . . . . . . Distress Signals . | . . . . . . Times Spotted 30 | . 4 5 . 8 13 Peak Tracking Total 11 | . 4 3 . 4 11 Tactical Retreats 1 | . . . . 1 . Traps | -11 -10 -10 -10 -9 -8 ------- Run | Yrd Mat Min Exi Min Mat Traps Triggered . | . . . . . . Indirectly . | . . . . . . Trap Hack Attempts . | . . . . . . Triggered . | . . . . . . Disarmed . | . . . . . . Reprogrammed . | . . . . . . Reused . | . . . . . . Traps Extracted . | . . . . . . Installed . | . . . . . . Triggered . | . . . . . . Machines | -11 -10 -10 -10 -9 -8 ---------- Run | Yrd Mat Min Exi Min Mat Machines Disabled 1 | . . 1 . . . Max in Single Turn 1 | . . 1 . . . Machines Repaired . | . . . . . . Machines Dismantled . | . . . . . . Machines Sabotaged . | . . . . . . Overloaded Fab Kills . | . . . . . . Hacking | -11 -10 -10 -10 -9 -8 --------- Run | Yrd Mat Min Exi Min Mat Machines Accessed 4 | . 1 . 3 . . Terminals . | . . . . . . Fabricators . | . . . . . . Repair Stations . | . . . . . . Recycling Units 1 | . 1 . . . . Scanalyzers . | . . . . . . Garrison Access . | . . . . . . Total Hacks 35 | . 1 . 34 . . Successful 35 | . 1 . 34 . . Failed . | . . . . . . Catastrophic . | . . . . . . Database Lockouts . | . . . . . . Manual 2 | . . . 2 . . Terminals . | . . . . . . Fabricators . | . . . . . . Repair Stations . | . . . . . . Recycling Units 1 | . 1 . . . . Scanalyzers . | . . . . . . Garrison Access . | . . . . . . Terminal Hacks 34 | . . . 34 . . Record 34 | . . . 34 . . Fabricator Hacks . | . . . . . . Repair Station Hacks . | . . . . . . Recycling Unit Hacks 1 | . 1 . . . . Report Inventory 1 | . 1 . . . . Scanalyzer . | . . . . . . Garrison Access Hacks . | . . . . . . Unauthorized Hacks . | . . . . . . Terminals . | . . . . . . Fabricators . | . . . . . . Repair Stations . | . . . . . . Recycling Units . | . . . . . . Scanalyzers . | . . . . . . Garrison Access . | . . . . . . Data Cores Recovered . | . . . . . . Used . | . . . . . . Hacking Detections . | . . . . . . Full Trace Events . | . . . . . . Feedback Events . | . . . . . . Feedback Blocked . | . . . . . . Robot Schematics Acquired . | . . . . . . Robots Built . | . . . . . . Authchips . | . . . . . . Time . | . . . . . . Total Robot Build Rating . | . . . . . . Part Schematics Acquired . | . . . . . . Parts Built . | . . . . . . Authchips . | . . . . . . Time . | . . . . . . Total Part Build Rating . | . . . . . . Parts Repaired . | . . . . . . Time . | . . . . . . Parts Recycled . | . . . . . . Recycled Matter . | . . . . . . Retrieved Matter . | . . . . . . Retrieved Components . | . . . . . . Parts Scanalyzed . | . . . . . . Part Schematics Acquired . | . . . . . . Parts Damaged . | . . . . . . Bothacking | -11 -10 -10 -10 -9 -8 ------------ Run | Yrd Mat Min Exi Min Mat Used RIF Installer . | . . . . . . Robots Hacked . | . . . . . . Non-combat . | . . . . . . Combat . | . . . . . . Robot Hacks Applied . | . . . . . . Relay Couplers Released . | . . . . . . Fabnet Peak Effective % . | . . . . . . Robots Rewired . | . . . . . . Allies Hacked . | . . . . . . Hacks Repelled . | . . . . . . Allies | -11 -10 -10 -10 -9 -8 -------- Run | Yrd Mat Min Exi Min Mat Total Allies . | . . . . . . Largest Group . | . . . . . . Highest-Rated Group . | . . . . . . Highest-Rated Ally . | . . . . . . Total Orders . | . . . . . . Ally Attacks . | . . . . . . Total Damage . | . . . . . . Kills . | . . . . . . Allies Corrupted . | . . . . . . Allies Melted . | . . . . . . Intel | -11 -10 -10 -10 -9 -8 ------- Run | Yrd Mat Min Exi Min Mat Robot Analysis Total . | . . . . . . Derelict Logs Recovered 2 | . . . . 2 . Drone Launches . | . . . . . . Drone Recoveries . | . . . . . . Exploration | -11 -10 -10 -10 -9 -8 ------------- Run | Yrd Mat Min Exi Min Mat Turns Passed 1066 | 70 109 274 400 141 72 Spaces Moved 1552 | 43 53 139 1068 210 39 Core 22 | 9 . . . . 13 Treads 220 | 34 53 119 . . 14 Legs . | . . . . . . Wheels . | . . . . . . Hover . | . . . . . . Flight 1310 | . . 20 1068 210 12 Fastest Speed 37 | 50 160 37 37 37 37 Average Speed 55 | 136 160 145 37 37 103 Slowest Speed 170 | 160 160 160 37 37 170 Overloaded Moves . | . . . . . . Propulsion Burnouts . | . . . . . . Robots Hopped . | . . . . . . Cave-ins Triggered . | . . . . . . Exploration Rate (%) 35 | 4 11 35 92 62 6 Regions Visited 5 Branch Regions 3 Pre-discovered Areas 1 | . . . 1 . . Known Exits Taken . | . . . . . . Unknown Exits Taken 5 | 1 1 1 1 1 . Scrap Searched 1 | . . . . 1 . Spaces Dug . | . . . . . . Terrain Destroyed 18 | . . 12 . 6 . Melee . | . . . . . . Projectile . | . . . . . . AOE 18 | . . 12 . 6 . Terrain Rammed . | . . . . . . Walls Destroyed . | . . . . . . Machines Disabled . | . . . . . . Actions | -11 -10 -10 -10 -9 -8 --------- Run | Yrd Mat Min Exi Min Mat Total 1668 | 54 64 174 1073 243 60 Wait 9 | . . . . 3 6 Move 1547 | 42 52 138 1067 209 39 Hop . | . . . . . . Pick Up 19 | 6 2 3 3 4 1 Fast Attach . | . . . . . . Attach 16 | 6 . 4 1 3 2 Detach 1 | . . . 1 . . Swap 3 | . 2 . . 1 . Drop 7 | . 1 3 1 2 . Fire 59 | . 7 26 . 21 5 Melee . | . . . . . . Ram 3 | . . . . . 3 Kick . | . . . . . . Crush 4 | . . . . . 4 Escape Stasis . | . . . . . . Rewire . | . . . . . . Trap . | . . . . . . Miscellaneous . | . . . . . . Route ------- -11/Scrapyard -10/Materials -10/Mines -10/Exiles (discovered 2 exits: [*Min x2]) -9/Mines -8/Materials History --------- Turn | Location | Event 2 | -11/Scrapyard | Discovered new exit (range 16) 71 | -11/Scrapyard | Entered Materials 161 | -10/Materials | Discovered new exit (range 13) 180 | -10/Materials | Entered Mines 307 | -10/Mines | Build established: Mutant 427 | -10/Mines | Core integrity fell below 50% 452 | -10/Mines | Deemed a non-threat by the Exiles lab entrance 452 | -10/Mines | Discovered new exit (range 5) 454 | -10/Mines | Entered Exiles 466 | -10/Exiles | Discovered new exit (range 15) 472 | -10/Exiles | Met 8R-AWN 479 | -10/Exiles | Met EX-HEX 509 | -10/Exiles | Met EX-DEC 520 | -10/Exiles | Learned location of Zion (-7) 538 | -10/Exiles | Discovered new exit (range 10) 571 | -10/Exiles | Visited The Gauntlet 662 | -10/Exiles | Met EX-BIN 667 | -10/Exiles | Aligned with FarCom system 668 | -10/Exiles | Given EX-Vault access code 854 | -10/Exiles | Entered Mines 859 | -9/Mines | Learned Materials terminal intel 860 | -9/Mines | Learned Materials terminal intel 959 | -9/Mines | Discovered new exit (range 11) 964 | -9/Mines | Core integrity fell below 20% 995 | -9/Mines | Entered Materials 995 | -8/Materials | Evolved 4 slots: Weapon x4 996 | -8/Materials | Loaded intel: 12 terminal locations 1037 | -8/Materials | Core integrity fell below 50% 1049 | -8/Materials | Lost 7 parts (1p2n1u3w) 1059 | -8/Materials | Core integrity fell below 20% 1067 | -8/Materials | Destroyed by S-10 Pest with Light Assault Rifle Last Messages --------------- Flight Unit destroyed. EM Shotgun destroyed. Seismic Detector destroyed. ALERT: Hostiles spotted, dispatching reinforcements to Terminal M012. Flight Unit destroyed. Lgt. Assault Rifle destroyed. Lgt. Ion Engine destroyed. S-10 Pest destroyed. U-05 Engineer builds a Door. K-01 Serf collects debris. Slammed into S-10 Pest. Acquired Arm. Treads. K-01 Serf collects debris. Slammed into S-10 Pest. W-25 Informer sends out distress signal. K-01 Serf collects debris. Slammed into S-10 Pest. Arm. Treads destroyed. Slammed into S-10 Pest. Map ----- +----------------------------------------------------+ | ??????????????# #?????????????????????????? | | ??????????????# #?????????????????????????? | | ??????????????##### #?????????????????????????? | | ??????????????????# #?????????????????????????? | | ??????????????????# #?????????????????????????? | | ??????????????????# #?????????????????????????? | | ??????????????????# #?????????????????????????? | | ??????????????????# #?????????????????T???????? | | ??????????????????# #???? ??????????????????? | | ??????????????????# #???? ?????????????????? | | ??????????????????# #???? #?????????????????? | | ??????????????????# #???? #?????????????????? | | ??????????????????# #???? #?????????????????? | | ??????????????????# #???? +?????????????????? | | ??????????????????# #???? #?????????????????? | | ???????????######## #???# #?????????????????? | | ???????????# # %#???# #?????????????????? | | ???????????# # %#???# #?????????????????? | | ???????????# # % #???# #?????????????????? | | ???????????# kw #???# #?????????????????? | | ???????????# ! # #???# ###???????????????? | | ???????????# # #???# ????????????????? | | ???????????######## ##??# s #?????????????????? | | ?????????????????# #### #?????????????????? | | ?????????????????# Yss% #?????????????????? | | ???????????????? + s@%as #?????????????????? | | ???????????????" # ssss #?????????????????? | | ?????????????? # ###+####?????????????????? | | ????????Y????"""?## ##????????????????????????? | | ???????????? """??# #?""????????T?????????????? | | ??????????????????# #?""??????????????????????? | | ??????????????????# #?"T??????????????????????? | | ??????????????????# #?""??????????????????????? | | ??????????????????# #?""??????????????????????? | | ??????????????????# ??????????????????????????? | | ??????????????????# ??????????????????????????? | | ??????????????????# ??????????????????????????? | | ??????????????????# ??????????????????????????? | | ????????????????????gg??????????????????????????? | | ????????????????????g???????????????????????????? | | ????????????????????????????????????????????????? | | ?????????????????w??????????????????????????????? | | ????????????????????????????????????????????????? | | ????????????????????????????????????????????????? | | ????????????????????????????????????????????????? | | ????????????????????????????????????????????????? | | ????????????????????????????????????????????????? | | ????????????????????????????????????????????????? | | ????????????????????????????????????????????????? | | ????????????????????????????????????????????????? | +----------------------------------------------------+ Best States ------------- Heat Dissipation 31 Energy Generation 10 Energy Capacity 125 Matter Stores 300 Matter Capacity 300 Sight Range 16 Terrain Scan Density 10 Evasion (%) 62 Recoil Reduction 2 Item Schematics ----------------- None Robot Schematics ------------------ None Fabricated ------------ Nothing Alien Tech Used ----------------- None Achievements -------------- Close Call Tourist Challenges ------------ None Game ------ Seed BiomechanicalSigixAirjet Manual? 0 Play Time 00:29:45 Cumulative 3.5 hours Start 2024.03.11 @ 15:55:43 End 2024.03.11 @ 16:32:45 Sessions 1 Manual Loads 0 Difficulty Rogue Special Mode None Game No. 3 Rogue 3 Adventurer 0 Explorer 0 Win Type - Total 0 Types 0/0/0/0/0/0/0/0/0 Lore% 8 Gallery% 6 Achievement% 5 Wizard Run 0 Options --------- Layout 1 ASCII 0 Keyboard 0 Movement Mouse Keybinds 0 Fullscreen 1 Font 24/Smallcaps Map View 50x35 Zoom Use 0% Tactical HUD 0 Map Filters NONE Filters NONE Steam 1 RUN: 02a9fed9-719e-44c0-8546-335e564f3c14